{"text_format":"1","workbook":"xlsx","n_sheets":9,"sheets":["Notes","Funds","Defenders","Players","Owners","Results","Signed","SquadSize","Spending"],"not_rendered":{"charts":0,"images":1,"macros":1,"external_links":0,"defined_names":9,"comments":0,"pivot_tables":2},"unopened":[],"bounds":{"document_bytes":16777216,"sheet_cells":100000,"rows_first":2000,"rows_last":500,"rows_between":2000,"halvings":0,"cell_chars":16384,"cell_head_chars":4096},"cells_cut":0,"cells_raw":0,"read":"whole","date_system":"1900"}

{"sheet":"Notes","index":0,"n_rows":20,"n_cols":2,"rows_kept":20,"cut":false,"hidden":false,"merged":[]}
["Email Auction Notes and Rules"]
[]
[null,"DL2020 January Auction R1"]
[]
["Funds:","Check the Funds tab to see the amount of money you have left to spend"]
[]
["Defenders:","The 'Defenders Free' tab (if completed) shows how many keepers and defenders can still be bought for each team. Only 5 defenders are permitted in the pool from any one real club"]
[]
["Players:","To make a bid for a player, select your name from the drop-down list."]
[null,"You can only bid for a maximum of two goalkeepers in the pre-season Goalkeeper auction"]
[null,"Enter the Bid amount in mulitples of £100k, where £100k=0.1, £1,000,000=1.0, £5,100,000=5.1"]
[null,"If a successful bid will take your overall squad number to more than 18 you must be available at bid-closing time to nominate a player to release. If you know already who you plan to release, enter the player's name in the Release column"]
["Signed:","All owned players prior to this auction, for information"]
[]
["Squads: ","Number of players by position per Owner prior to this auction, for information"]
[]
["Submitting:","When you have completed your bids:- \nsave the document by adding your name to the end of the file name - \"2020 Email Auction - January R1 - <Griff>\"\nsend it to Chris Griffin at cgriffin18@hotmail.com"]
[]
["Deadlines:","Round 1 bids - 5pm, Sunday, 26th January"]
[null,"Round 2 bids - 5pm, Sunday, 3rd February"]

{"sheet":"Funds","index":1,"n_rows":18,"n_cols":25,"rows_kept":18,"cut":false,"hidden":false,"merged":[[0,13,0,15],[0,16,0,18],[1,23,1,24],[0,10,0,11],[0,5,0,9]]}
[null,null,null,null,null,"Squad (Pre-this auction)",null,null,null,null,"Auction Night",null,null,"Autumn Window",null,null,"January Window"]
["ID","Owner","Team Name","Opening","Balance","GK","Def","Mid","Fwd","Total","GK\\Night","Mopup1","Mopup2","R1","R2","R3","R1","R2","R3","Balance",null,"Spend",null,"Latest Round Spend"]
["ACL","Andy Clucas","Breast Homage Albion",40,{"$f":"T3","v":9.9999999999994316E-2},3,5,3,7,{"$f":"SUM(F3:I3)","v":18},39.200000000000003,0,0.6,0,0.1,null,null,null,null,{"$f":"D3-SUM(K3:S3)","v":9.9999999999994316E-2},null,{"$f":"IF(ISERROR(INDEX(Spending!C:C,MATCH(B3,Spending!A:A,0))),0,INDEX(Spending!C:C,MATCH(B3,Spending!A:A,0)))","v":0},null,{"$f":"B3","v":"Andy Clucas"},{"$f":"IF(V3=0,\"\",V3)","v":""}]
["CH","Carl Hogg","Hogg's Roast FC",40,2.8999999999999986,2,4,5,7,18,36,0.4,0.1,0.6,0,null,null,null,null,2.8999999999999986,null,{"$f":"IF(ISERROR(INDEX(Spending!C:C,MATCH(B4,Spending!A:A,0))),0,INDEX(Spending!C:C,MATCH(B4,Spending!A:A,0)))","v":0},null,{"$f":"B4","v":"Carl Hogg"},{"$f":"IF(V4=0,\"\",V4)","v":""}]
["CP","Charlotte Phillips","FC Hammer",40,0.69999999999999574,1,3,4,6,14,39.300000000000004,0,0,0,0,null,null,null,null,0.69999999999999574,null,{"$f":"IF(ISERROR(INDEX(Spending!C:C,MATCH(B5,Spending!A:A,0))),0,INDEX(Spending!C:C,MATCH(B5,Spending!A:A,0)))","v":0},null,"Charlotte Phillips",""]
["CG","Chris Griffin","The Jordi Gomez Love-in",40,0.40000000000001279,2,4,4,8,18,34.699999999999996,3.8,0.3,0.5,0.30000000000000004,null,null,null,null,0.40000000000001279,null,{"$f":"IF(ISERROR(INDEX(Spending!C:C,MATCH(B6,Spending!A:A,0))),0,INDEX(Spending!C:C,MATCH(B6,Spending!A:A,0)))","v":0},null,"Chris Griffin",""]
["DS","Dave Sumner","People's Front of Springfield",40,1.9999999999999929,2,5,4,7,18,34.400000000000006,1.5,0.1,2,0,null,null,null,null,1.9999999999999929,null,{"$f":"IF(ISERROR(INDEX(Spending!C:C,MATCH(B7,Spending!A:A,0))),0,INDEX(Spending!C:C,MATCH(B7,Spending!A:A,0)))","v":0},null,"Dave Sumner",""]
["GM","Graham Miller","Sporting Anattyjacket",40,10.499999999999996,2,3,4,7,16,28.400000000000002,0,0.6,0,0.5,null,null,null,null,10.499999999999996,null,{"$f":"IF(ISERROR(INDEX(Spending!C:C,MATCH(B8,Spending!A:A,0))),0,INDEX(Spending!C:C,MATCH(B8,Spending!A:A,0)))","v":0},null,"Graham Miller",""]
["HB","Howard Bradley","Brush It, Munch And Gag Back",40,4.3000000000000043,2,4,4,8,18,28.799999999999997,6.5,0,0.3,0.1,null,null,null,null,4.3000000000000043,null,{"$f":"IF(ISERROR(INDEX(Spending!C:C,MATCH(B9,Spending!A:A,0))),0,INDEX(Spending!C:C,MATCH(B9,Spending!A:A,0)))","v":0},null,"Howard Bradley",""]
["JM","John Murphy","Jean Pierre's Tap-ins",40,3,2,3,5,7,17,35,1.4000000000000001,0.6,0,0,null,null,null,null,3,null,{"$f":"IF(ISERROR(INDEX(Spending!C:C,MATCH(B10,Spending!A:A,0))),0,INDEX(Spending!C:C,MATCH(B10,Spending!A:A,0)))","v":0},null,"John Murphy",""]
["JF","Jonny Fairclough","Fortuna Dufflecoat",40,1.6999999999999957,2,4,3,6,15,38.300000000000004,0,0,0,0,null,null,null,null,1.6999999999999957,null,{"$f":"IF(ISERROR(INDEX(Spending!C:C,MATCH(B11,Spending!A:A,0))),0,INDEX(Spending!C:C,MATCH(B11,Spending!A:A,0)))","v":0},null,"Jonny Fairclough",""]
["JB","Liam Murphy","10 Man Wigan",40,1.0000000000000071,2,5,4,7,18,36.499999999999993,0,0,2.5,0,null,null,null,null,1.0000000000000071,null,{"$f":"IF(ISERROR(INDEX(Spending!C:C,MATCH(B12,Spending!A:A,0))),0,INDEX(Spending!C:C,MATCH(B12,Spending!A:A,0)))","v":0},null,"Liam Murphy",""]
["MS","Mo Sudell","Locomotive Leighpzig",40,7.8999999999999986,2,3,5,8,18,30.4,1.1000000000000001,0.30000000000000004,0.30000000000000004,0,null,null,null,null,7.8999999999999986,null,{"$f":"IF(ISERROR(INDEX(Spending!C:C,MATCH(B13,Spending!A:A,0))),0,INDEX(Spending!C:C,MATCH(B13,Spending!A:A,0)))","v":0},null,"Mo Sudell",""]
["NH","Nigel Heyes","Real Madridicule United",40,0,2,3,3,5,13,40,0,0,0,0,null,null,null,null,0,null,{"$f":"IF(ISERROR(INDEX(Spending!C:C,MATCH(B14,Spending!A:A,0))),0,INDEX(Spending!C:C,MATCH(B14,Spending!A:A,0)))","v":0},null,"Nigel Heyes",""]
["NHU","Nigel Hughes","Atletico Standish",40,1.5999999999999943,2,3,4,8,17,37,0.2,0,0.7,0.5,null,null,null,null,1.5999999999999943,null,{"$f":"IF(ISERROR(INDEX(Spending!C:C,MATCH(B15,Spending!A:A,0))),0,INDEX(Spending!C:C,MATCH(B15,Spending!A:A,0)))","v":0},null,"Nigel Hughes",""]
["PFA","Paul Fairhurst","Earby Blues",40,0,2,4,5,7,18,30.700000000000003,9.3000000000000007,0,0,0,null,null,null,null,0,null,{"$f":"IF(ISERROR(INDEX(Spending!C:C,MATCH(B16,Spending!A:A,0))),0,INDEX(Spending!C:C,MATCH(B16,Spending!A:A,0)))","v":0},null,"Paul Fairhurst",""]
["PG","Paul Greenwood","Abe Frohman's Sausage Kings",40,2.5999999999999943,2,3,4,9,18,27.4,9.8000000000000007,0,0.2,0,null,null,null,null,2.5999999999999943,null,{"$f":"IF(ISERROR(INDEX(Spending!C:C,MATCH(B17,Spending!A:A,0))),0,INDEX(Spending!C:C,MATCH(B17,Spending!A:A,0)))","v":0},null,"Paul Greenwood",""]
["SW","Steve Waterhouse","20Legend",40,0,2,4,5,7,18,38,2,0,0,0,null,null,null,null,0,null,{"$f":"IF(ISERROR(INDEX(Spending!C:C,MATCH(B18,Spending!A:A,0))),0,INDEX(Spending!C:C,MATCH(B18,Spending!A:A,0)))","v":0},null,"Steve Waterhouse",""]

{"sheet":"Defenders","index":2,"n_rows":45,"n_cols":10,"rows_kept":45,"cut":false,"hidden":false,"merged":[]}
["Team","GK Signed","Def Signed","GK Available","Def Available",null,null,"From DLC Pool Pivot ↓ (admin only)"]
["Arsenal",1,2,{"$f":"IF(1-B2=0,\"\",1-B2)","v":""},{"$f":"IF(5-C2=0,\"\",5-C2)","v":3},null,null,"Arsenal",3,1]
["Aston Villa",1,null,{"$f":"IF(1-B3=0,\"\",1-B3)","v":""},{"$f":"IF(5-C3=0,\"\",5-C3)","v":5},null,null,"Aston Villa",1,2]
["Barnsley",null,null,1,5,null,null,"Barnsley",1]
["Birmingham City",1,1,"",4,null,null,"Birmingham City",1]
["Blackburn Rovers",1,null,"",5,null,null,"Blackburn Rovers",2,1]
["Bournemouth",null,null,1,5,null,null,"Bournemouth",2,2]
["Brentford",null,null,1,5,null,null,"Brentford",4]
["Brighton & Hove Albion",1,1,"",4,null,null,"Brighton & Hove Albion",2,1]
["Bristol City",1,1,"",4,null,null,"Bristol City",3,1]
["Burnley",1,3,"",2,null,null,"Burnley",3]
["Cardiff City",1,2,"",3,null,null,"Cardiff City",2,2]
["Charlton Athletic",1,null,"",5,null,null,"Charlton Athletic",2,1]
["Chelsea",1,2,"",3,null,null,"Chelsea",3,5]
["Crystal Palace",1,1,"",4,null,null,"Crystal Palace",3,3]
["Derby County",null,null,1,5,null,null,"Derby County",3,1]
["Everton",1,4,"",1,null,null,"Everton",4,1]
["Fulham",1,3,"",2,null,null,"Fulham",4,2]
["Huddersfield Town",1,1,"",4,null,null,"Huddersfield Town",2]
["Hull City",null,null,1,5,null,null,"Hull City",4]
["Leeds United",1,3,"",2,null,null,"Leeds United",3,2]
["Leicester City",1,4,"",1,null,null,"Leicester City",2,3]
["Liverpool",1,4,"",1,null,null,"Liverpool",3,2]
["Luton Town",null,1,1,4,null,null,"Luton Town",3]
["Manchester City",1,4,"",1,null,null,"Manchester City",5,4]
["Manchester United",1,4,"",1,null,null,"Manchester United",3,2]
["Middlesbrough",1,1,"",4,null,null,"Middlesbrough",2,1]
["Millwall",null,null,1,5,null,null,"Millwall",2,1]
["Newcastle United",1,1,"",4,null,null,"Newcastle United",2,1]
["Norwich City",1,null,"",5,null,null,"Norwich City",1,1]
["Nottingham Forest",null,2,1,3,null,null,"Nottingham Forest",2,4]
["Preston North End",1,2,"",3,null,null,"Preston North End",4,2]
["Queens Park Rangers",null,null,1,5,null,null,"Queens Park Rangers",3]
["Reading",null,null,1,5,null,null,"Reading",3,2]
["Sheffield United",1,null,"",5,null,null,"Sheffield United",3]
["Sheffield Wednesday",1,null,"",5,null,null,"Sheffield Wednesday",2,1]
["Southampton",1,1,"",4,null,null,"Southampton",2,2]
["Stoke City",null,null,1,5,null,null,"Stoke City",4]
["Swansea City",1,3,"",2,null,null,"Swansea City",1,3]
["Tottenham Hotspur",1,2,"",3,null,null,"Tottenham Hotspur",4,3]
["Watford",1,null,"",5,null,null,"Watford",4,2]
["West Bromwich Albion",1,2,"",3,null,null,"West Bromwich Albion",3,2]
["West Ham United",1,3,"",2,null,null,"West Ham United",3,3]
["Wigan Athletic",null,null,1,5,null,null,"Wigan Athletic",2,1]
["Wolverhampton Wanderers",1,2,"",3,null,null,"Wolverhampton Wanderers",2,4]

{"sheet":"Players","index":3,"n_rows":606,"n_cols":9,"rows_kept":606,"cut":false,"hidden":false,"merged":[]}
["Sort ↕","Ref","Cat","Pos","Player","Team","Owner","Bid","Release"]
["A",4999,"A","GK","Bartosz Biakowski","Millwall"]
["A",4289,"A","GK","Jack Butland","Stoke"]
["A",5660,"A","GK","Rafael Cabral","Reading"]
["A",5661,"A","GK","Kamil Grabara","Huddersfield"]
["A",5665,"A","GK","George Long","Hull"]
["A",5375,"A","GK","Joe Lumley","QPR"]
["A",3612,"A","GK","David Marshall","Wigan"]
["A",5370,"A","GK","Rui Patricio","Wolves"]
["A",5589,"A","GK","Samuel Radlinger","Barnsley"]
["A",5656,"A","GK","Aaron Ramsdale","Bournemouth"]
["A",5664,"A","GK","Kelle Roos","Derby"]
["A",5621,"A","GK","Simon Sluga","Luton"]
["B",4540,"A","DEF","Toby Alderweireld","Spurs"]
["B",5018,"A","DEF","Reece Burke","Hull"]
["B",4310,"A","DEF","Nacho Monreal","Arsenal"]
["B",3902,"B","DEF","Kyle Bartley","West Brom"]
["B",5058,"B","DEF","Christopher Schindler","Huddersfield"]
["B",5123,"C","DEF","Semi Ajayi","West Brom"]
["B",5070,"C","DEF","Nathan Ake","Bournemouth"]
["B",4637,"C","DEF","Hector Bellerin","Arsenal"]
["B",5202,"C","DEF","Willy Boly","Wolves"]
["B",5225,"C","DEF","Cameron Carter-Vickers","Stoke"]
["B",5204,"C","DEF","Anders Christensen","Chelsea"]
["B",4365,"C","DEF","Seamus Coleman","Everton"]
["B",4581,"C","DEF","Harlee Dean","Birmingham"]
["B",5042,"C","DEF","Jose Holebas","Watford"]
["B",3455,"C","DEF","Richard Keogh","Derby"]
["B",1962,"C","DEF","Tom Lees","Sheff W"]
["B",3306,"C","DEF","Matthew Lowton","Burnley"]
["B",3141,"C","DEF","Sean Morrison","Cardiff"]
["B",4760,"C","DEF","Tim Ream","Fulham"]
["B",4305,"C","DEF","Danny Rose","Spurs"]
["B",4066,"C","DEF","Ryan Shotton","Middlesbro"]
["B",5593,"C","DEF","Keiran Tierney","Arsenal"]
["B",5348,"C","DEF","Kyle Walker-Peters","Spurs"]
["B",2250,"C","DEF","Andre Wisdom","Derby"]
["B",5493,"D","DEF","Max Aarons","Norwich"]
["B",5582,"D","DEF","Mads Andersen","Barnsley"]
["B",4278,"D","DEF","Daniel Ayala","Middlesbro"]
["B",5069,"D","DEF","Nathan Baker","Bristol C"]
["B",5293,"D","DEF","George Baldock","Sheff U"]
["B",5237,"D","DEF","Yoann Barbet","QPR"]
["B",4697,"D","DEF","Yoann Barbet","Brentford"]
["B",2249,"D","DEF","Danny Batth","Stoke"]
["B",5360,"D","DEF","Jan Bednarak","Southampton"]
["B",5550,"D","DEF","Amari Bell","Blackburn"]
["B",3563,"D","DEF","Joe Bennett","Cardiff"]
["B",4627,"D","DEF","Krystian Bielik","Derby"]
["B",5009,"D","DEF","Tyler Blackett","Reading"]
["B",5617,"D","DEF","Julian Borner","Sheff W"]
["B",5652,"D","DEF","James Bree","Luton"]
["B",5680,"D","DEF","Jaden Brown","Huddersfield"]
["B",4856,"D","DEF","Nathan Byrne","Wigan"]
["B",4093,"D","DEF","Gary Cahill","Palace"]
["B",5387,"D","DEF","Jonny Castro Otto","Wolves"]
["B",3703,"D","DEF","Craig Cathcart","Watford"]
["B",5002,"D","DEF","Cyrus Christie","Fulham"]
["B",3076,"D","DEF","Ciaran Clark","Newcastle"]
["B",4243,"D","DEF","Nathaniel Clyne","Bournemouth"]
["B",5055,"D","DEF","Maxime Colin","Birmingham"]
["B",2860,"D","DEF","Steve Cook","Bournemouth"]
["B",4612,"D","DEF","Jake Cooper","Millwall"]
["B",3531,"D","DEF","Martin Cranie","Luton"]
["B",4915,"D","DEF","Greg Cunningham","Blackburn"]
["B",5357,"D","DEF","Henrik Dalsgaard","Brentford"]
["B",4563,"D","DEF","Charlie Daniels","Bournemouth"]
["B",3613,"D","DEF","Scott Dann","Palace"]
["B",5588,"D","DEF","Jay Dasilva","Bristol C"]
["B",3794,"D","DEF","Craig Dawson","Watford"]
["B",5400,"D","DEF","Jordy de Wijs","Hull"]
["B",5670,"D","DEF","Bambo Diaby","Barnsley"]
["B",4602,"D","DEF","Shane Duffy","Brighton"]
["B",4588,"D","DEF","Paul Dummett","Newcastle"]
["B",5181,"D","DEF","Chey Dunkley","Wigan"]
["B",5683,"D","DEF","Callum Elder","Hull"]
["B",3607,"D","DEF","Ahmed Elmohamady","Villa"]
["B",4919,"D","DEF","Tommy Elphick","Huddersfield"]
["B",5669,"D","DEF","Nathan Ferguson","West Brom"]
["B",4491,"D","DEF","Federico Fernandez","Newcastle"]
["B",5686,"D","DEF","Darnell Fisher","Preston"]
["B",5682,"D","DEF","Brandon Fleming","Hull"]
["B",4767,"D","DEF","Morgan Fox","Sheff W"]
["B",2818,"D","DEF","Daniel Fox","Wigan"]
["B",2190,"D","DEF","Simon Francis","Bournemouth"]
["B",5449,"D","DEF","Kieron Freeman","Sheff U"]
["B",5201,"D","DEF","Dael Fry","Middlesbro"]
["B",5564,"D","DEF","Darnell Furlong","West Brom"]
["B",5011,"D","DEF","Brendan Galloway","Luton"]
["B",5502,"D","DEF","Ben Godfrey","Norwich"]
["B",3256,"D","DEF","Jonathon Grounds","Birmingham"]
["B",5681,"D","DEF","Florent Hadergjonaj","Huddersfield"]
["B",4651,"D","DEF","Grant Hall","QPR"]
["B",4273,"D","DEF","Grant Hanley","Norwich"]
["B",5008,"D","DEF","Kortney Hause","Villa"]
["B",4923,"D","DEF","Rob Holding","Arsenal"]
["B",4078,"D","DEF","Jack Hunt","Bristol C"]
["B",4611,"D","DEF","Shaun Hutchinson","Millwall"]
["B",2783,"D","DEF","Alan Hutton","Villa"]
["B",5007,"D","DEF","Dominic Iorfa","Sheff W"]
["B",4083,"D","DEF","Phil Jagielka","Sheff U"]
["B",5066,"D","DEF","Pontus Jansson","Brentford"]
["B",5505,"D","DEF","Julian Jeanvier","Brentford"]
["B",2674,"D","DEF","Carl Jenkinson","Forest"]
["B",5075,"D","DEF","Christian Kabasele","Watford"]
["B",3861,"D","DEF","Todd Kane","QPR"]
["B",3144,"D","DEF","Martin Kelly","Palace"]
["B",5556,"D","DEF","Kiko","Watford"]
["B",5382,"D","DEF","Cedric Kipre","Wigan"]
["B",4906,"D","DEF","Timm Klose","Norwich"]
["B",2554,"D","DEF","Jamaal Lascelles","Newcastle"]
["B",5470,"D","DEF","Darragh Lenihan","Blackburn"]
["B",5304,"D","DEF","Jamal Lewis","Norwich"]
["B",5586,"D","DEF","Liam Lindsay","Stoke"]
["B",5674,"D","DEF","Tom Lockyer","Charlton"]
["B",5678,"D","DEF","Max Lowe","Derby"]
["B",2945,"D","DEF","Scott Malone","Derby"]
["B",5156,"D","DEF","Cuco Martina","Stoke"]
["B",5228,"D","DEF","Conor McLaughlin","Millwall"]
["B",5542,"D","DEF","Tyrone Mings","Villa"]
["B",5434,"D","DEF","Martin Montoya","Brighton"]
["B",2181,"D","DEF","Liam Moore","Reading"]
["B",2671,"D","DEF","Michael Morrison","Reading"]
["B",4715,"D","DEF","Angelo Ogbonna","West Ham"]
["B",5673,"D","DEF","Adedeji Oshilaja","Charlton"]
["B",3820,"D","DEF","Alex Pearce","Millwall"]
["B",2938,"D","DEF","Jason Pearce","Charlton"]
["B",5677,"D","DEF","Matthew Pearson","Luton"]
["B",5133,"D","DEF","Matthew Pennington","Hull"]
["B",3877,"D","DEF","Erik Pieters","Burnley"]
["B",5340,"D","DEF","Danil Pinillos","Barnsley"]
["B",5675,"D","DEF","Ben Purrington","Charlton"]
["B",5688,"D","DEF","Joe Rafferty","Preston"]
["B",3666,"D","DEF","Angel Rangel","QPR"]
["B",4555,"D","DEF","Adam Reach","Sheff W"]
["B",5615,"D","DEF","Yuri Ribeiro","Forest"]
["B",5343,"D","DEF","Omar Richards","Reading"]
["B",4706,"D","DEF","Ashley Richards","Cardiff"]
["B",5078,"D","DEF","Marc Roberts","Birmingham"]
["B",5383,"D","DEF","Antonee Robinson","Wigan"]
["B",2301,"D","DEF","Liam Rosenior","Brighton"]
["B",5142,"D","DEF","Antonio Rudiger","Chelsea"]
["B",4824,"D","DEF","Mahamadou Sarr","Charlton"]
["B",5667,"D","DEF","Steve Sessegnon","Fulham"]
["B",4363,"D","DEF","Ryan Shawcross","Stoke"]
["B",5671,"D","DEF","Toby Sibbick","Barnsley"]
["B",5639,"D","DEF","Djibril Sidibe","Everton"]
["B",3135,"D","DEF","Chris Smalling","Man U"]
["B",4690,"D","DEF","Cedric Soares","Southampton"]
["B",5319,"D","DEF","Jack Stephens","Southampton"]
["B",5351,"D","DEF","Enda Stevens","Sheff U"]
["B",5530,"D","DEF","Jordan Storey","Preston"]
["B",4691,"D","DEF","Franck Tabanou","Swansea"]
["B",5257,"D","DEF","Marcus Tavernier","Middlesbro"]
["B",4814,"D","DEF","Neil Taylor","Villa"]
["B",5570,"D","DEF","Lewis Travis","Blackburn"]
["B",5549,"D","DEF","Jan Valery","Southampton"]
["B",5627,"D","DEF","Jesus Vallejo","Wolves"]
["B",4307,"D","DEF","Jan Vertonghen","Spurs"]
["B",5579,"D","DEF","Lee Wallace","QPR"]
["B",4482,"D","DEF","Murray Wallace","Millwall"]
["B",4315,"D","DEF","Joel Ward","Palace"]
["B",3547,"D","DEF","Ashley Westwood","Burnley"]
["B",5672,"D","DEF","Ben Williams","Barnsley"]
["B",5130,"D","DEF","Derrick Williams","Blackburn"]
["B",5643,"D","DEF","Romaric Yapi","Brighton"]
["B",5456,"D","DEF","Andy Yiadom","Reading"]
["B",4169,"D","DEF","Pablo Zabaleta","West Ham"]
["B",5668,"D","DEF","Oleksander Zinchenko","Man C"]
["B",4585,"D","DEF","Kurt Zouma","Chelsea"]
["C",5624,"A","MID","Dani Ceballos","Arsenal"]
["C",4926,"A","MID","Helder Costa","Leeds"]
["C",5128,"A","MID","Abdoulaye Doucoure","Watford"]
["C",3096,"A","MID","Nathan Dyer","Swansea"]
["C",4981,"A","MID","Connor Hourihane","Villa"]
["C",4580,"A","MID","Jota","Villa"]
["C",5592,"A","MID","Giovani Lo Celso","Spurs"]
["C",4159,"A","MID","Mesut Ozil","Arsenal"]
["C",4318,"A","MID","Nathan Redmond","Southampton"]
["C",3672,"A","MID","Matt Ritchie","Newcastle"]
["C",5473,"A","MID","Will Vaulks","Cardiff"]
["C",3589,"B","MID","Joe Allen","Stoke"]
["C",4841,"B","MID","Alan Browne","Preston"]
["C",5475,"B","MID","Emiliano Buendia","Norwich"]
["C",4816,"B","MID","Matt Doherty","Wolves"]
["C",4457,"B","MID","John Lundstram","Sheff U"]
["C",3421,"B","MID","Joao Moutinho","Wolves"]
["C",3212,"B","MID","Oliver Norwood","Sheff U"]
["C",5063,"B","MID","Romaine Sawyers","West Brom"]
["C",4982,"B","MID","Marley Watkins","Bristol C"]
["C",4161,"C","MID","Stewart Downing","Blackburn"]
["C",5555,"C","MID","Kyle Edwards","West Brom"]
["C",5431,"C","MID","Andre Gomes","Everton"]
["C",1963,"C","MID","Jeff Hendrick","Burnley"]
["C",4512,"C","MID","Jordon Ibe","Bournemouth"]
["C",4729,"C","MID","Manuel Lanzini","West Ham"]
["C",4405,"C","MID","Nemanja Matic","Man U"]
["C",4306,"C","MID","James McClean","Stoke"]
["C",5040,"C","MID","Aaron Mooy","Brighton"]
["C",5538,"C","MID","Pele","Reading"]
["C",5517,"C","MID","Declan Rice","West Ham"]
["C",3702,"C","MID","Robert Snodgrass","West Ham"]
["C",5280,"C","MID","Marco Steipermann","Norwich"]
["C",4562,"C","MID","Jonny Williams","Charlton"]
["C",4255,"D","MID","Charlie Adam","Reading"]
["C",5580,"D","MID","Daniel Adshead","Norwich"]
["C",4136,"D","MID","Marc Albrighton","Leicester"]
["C",3132,"D","MID","Marcus Alonso","Chelsea"]
["C",5608,"D","MID","Ibrahim Amadou","Norwich"]
["C",4892,"D","MID","Daniel Amartey","Leicester"]
["C",3771,"D","MID","Sammy Ameobi","Forest"]
["C",5733,"D","MID","Luke Amos","QPR"]
["C",3520,"D","MID","Vurnon Anita","Leeds"]
["C",3953,"D","MID","Ikechi Anya","Derby"]
["C",5410,"D","MID","Stuart Armstrong","Southampton"]
["C",5440,"D","MID","Daniel Arzani","Man C"]
["C",3832,"D","MID","Leandro Bacuna","Cardiff"]
["C",5723,"D","MID","Mike-Steven Bahre","Barnsley"]
["C",5711,"D","MID","Odin Bailey","Birmingham"]
["C",5230,"D","MID","Lewis Baker","Reading"]
["C",4041,"D","MID","Barry Bannan","Sheff W"]
["C",4848,"D","MID","Brandon Barker","Preston"]
["C",4046,"D","MID","Gareth Barry","West Brom"]
["C",3117,"D","MID","Chris Basham","Sheff U"]
["C",4614,"D","MID","Nabil Bentaleb","Newcastle"]
["C",5435,"D","MID","Bernard","Everton"]
["C",4444,"D","MID","Muhamed Besic","Sheff U"]
["C",5072,"D","MID","Philip Billing","Bournemouth"]
["C",5509,"D","MID","Yves Bissouma","Brighton"]
["C",5655,"D","MID","Luke Bolton","Luton"]
["C",5622,"D","MID","Josh Bowler","Hull"]
["C",4234,"D","MID","Robbie Brady","Burnley"]
["C",5750,"D","MID","Reece Brown","Peterborough"]
["C",4774,"D","MID","Josh Brownhill","Bristol C"]
["C",4097,"D","MID","Chris Brunt","West Brom"]
["C",4063,"D","MID","Jacob Butterfield","Luton"]
["C",5726,"D","MID","George Byers","Swansea"]
["C",5543,"D","MID","George Byers","Swansea"]
["C",5437,"D","MID","Victor Camarasa","Palace"]
["C",4012,"D","MID","Etienne Capoue","Watford"]
["C",4069,"D","MID","Tom Carroll","Swansea"]
["C",5274,"D","MID","Samir Carruthers","Sheff U"]
["C",5732,"D","MID","Ilias Chair","QPR"]
["C",5411,"D","MID","Trevor Chalobah","Huddersfield"]
["C",4208,"D","MID","Nathaniel Chalobah","Watford"]
["C",5145,"D","MID","Ibrahima Cisse","Fulham"]
["C",5056,"D","MID","Josh Clarke","Brentford"]
["C",3695,"D","MID","Adam Clayton","Middlesbro"]
["C",4238,"D","MID","Tom Cleverley","Watford"]
["C",3122,"D","MID","Jack Colback","Forest"]
["C",4192,"D","MID","Craig Conway","Blackburn"]
["C",4775,"D","MID","Lewis Cook","Bournemouth"]
["C",2632,"D","MID","Jack Cork","Burnley"]
["C",2254,"D","MID","Jordan Cousins","Stoke"]
["C",5743,"D","MID","Dan Crowley","Birmingham"]
["C",5719,"D","MID","Josh Cullen","Charlton"]
["C",5566,"D","MID","Josh Da Silva","Brentford"]
["C",5730,"D","MID","Matthew Daly","Huddersfield"]
["C",5094,"D","MID","Tom Davies","Everton"]
["C",4595,"D","MID","David Davis","Birmingham"]
["C",3303,"D","MID","Steven Davis","Southampton"]
["C",5459,"D","MID","Lucca De La Torre","Fulham"]
["C",4952,"D","MID","Steven Defour","Burnley"]
["C",5748,"D","MID","Tom Dele-Bashiru","Watford"]
["C",2974,"D","MID","Fabien Delph","Everton"]
["C",4246,"D","MID","Moussa Dembele","Spurs"]
["C",5709,"D","MID","Yan Dhanda","Swansea"]
["C",3511,"D","MID","Alou Diarra","Charlton"]
["C",4449,"D","MID","Eric Dier","Spurs"]
["C",3493,"D","MID","Nathan Doyle","Luton"]
["C",2874,"D","MID","Danny Drinkwater","Villa"]
["C",5761,"D","MID","Ondrej Duda","Norwich"]
["C",3935,"D","MID","Mark Duffy","Stoke"]
["C",5471,"D","MID","Niclas Eliasson","Bristol C"]
["C",4863,"D","MID","Mohamed Elneny","Arsenal"]
["C",5408,"D","MID","Mohammed Elyounoussi","Southampton"]
["C",5422,"D","MID","Oghenekaro Etobo","Stoke"]
["C",5092,"D","MID","Evandro","Hull"]
["C",5059,"D","MID","George Evans","Derby"]
["C",3988,"D","MID","Corry Evans","Blackburn"]
["C",5428,"D","MID","Fabinho","Liverpool"]
["C",3956,"D","MID","Shane Ferguson","Millwall"]
["C",5758,"D","MID","Gedson Fernandes","Spurs"]
["C",5279,"D","MID","Sam Field","Charlton"]
["C",5612,"D","MID","Aidan Fitzpatrick","Norwich"]
["C",5239,"D","MID","John Fleck","Sheff U"]
["C",5578,"D","MID","Pablo Fornals","West Ham"]
["C",4500,"D","MID","Adam Forshaw","Leeds"]
["C",1964,"D","MID","Jake Forster-Caskey","Charlton"]
["C",5414,"D","MID","Fred","Man U"]
["C",4836,"D","MID","Luke Freeman","Sheff U"]
["C",5465,"D","MID","Jay Fulton","Swansea"]
["C",4599,"D","MID","Gary Gardner","Birmingham"]
["C",3692,"D","MID","Craig Gardner","Birmingham"]
["C",5634,"D","MID","Jean-Philippe Gbamin","Everton"]
["C",4242,"D","MID","Dan Gosling","Bournemouth"]
["C",4609,"D","MID","Jorge Grant","Luton"]
["C",4619,"D","MID","Matt Grimes","Swansea"]
["C",5273,"D","MID","Pascal Gross","Brighton"]
["C",4584,"D","MID","Johann Berg Gudmundsson","Burnley"]
["C",3456,"D","MID","Adlene Guedioura","Forest"]
["C",5468,"D","MID","Matteo Guendouzi","Arsenal"]
["C",3287,"D","MID","Luke Guttridge","Luton"]
["C",4484,"D","MID","Ryan Hall","Luton"]
["C",5569,"D","MID","Rakeem Harper","West Brom"]
["C",4613,"D","MID","Callum Harriott","Reading"]
["C",5250,"D","MID","Isaac Hayden","Newcastle"]
["C",2826,"D","MID","Jordan Henderson","Liverpool"]
["C",5052,"D","MID","Marcus Henriksen","Hull"]
["C",5314,"D","MID","Onel Hernandez","Norwich"]
["C",4991,"D","MID","Jonathan Hogg","Huddersfield"]
["C",4939,"D","MID","Pierre Hojbjerg","Southampton"]
["C",5527,"D","MID","Duane Holmes","Derby"]
["C",3697,"D","MID","Lewis Holtby","Blackburn"]
["C",5248,"D","MID","George Honeyman","Hull"]
["C",3103,"D","MID","Wes Hoolahan","West Brom"]
["C",4111,"D","MID","Jonathon Howson","Middlesbro"]
["C",4004,"D","MID","Tom Huddlestone","Derby"]
["C",4913,"D","MID","Emerson Hyndman","Bournemouth"]
["C",2942,"D","MID","Matthew James","Leicester"]
["C",2683,"D","MID","Mile Jedinak","Villa"]
["C",5619,"D","MID","Mathias Jensen","Brentford"]
["C",5014,"D","MID","Stefan Johansen","West Brom"]
["C",2625,"D","MID","Bradley Johnson","Blackburn"]
["C",5754,"D","MID","Curtis Jones","Liverpool"]
["C",5702,"D","MID","Bruno Jordao","Wolves"]
["C",5395,"D","MID","Jorginho","Chelsea"]
["C",5636,"D","MID","Aldo Kalulu","Swansea"]
["C",4743,"D","MID","N'Gole Kante","Chelsea"]
["C",4727,"D","MID","Ahmed Kashi","Charlton"]
["C",4639,"D","MID","Baram Kayal","Brighton"]
["C",5013,"D","MID","Neeskens Kebano","Fulham"]
["C",4042,"D","MID","Sung-Yueng Ki","Newcastle"]
["C",5126,"D","MID","Maikel Kieftenbeld","Birmingham"]
["C",5739,"D","MID","Jason Knight","Derby"]
["C",4616,"D","MID","Chiekhou Kouyate","Palace"]
["C",5439,"D","MID","Mateo Kovacic","Chelsea"]
["C",5735,"D","MID","Filip Krovinovic","West Brom"]
["C",5208,"D","MID","Grzegorz Krychwowiak","West Brom"]
["C",4265,"D","MID","Adam Lallana","Liverpool"]
["C",4129,"D","MID","Henri Lansbury","Villa"]
["C",4105,"D","MID","Grant Leadbitter","Middlesbro"]
["C",2189,"D","MID","Joe Ledley","Charlton"]
["C",3233,"D","MID","Kieran Lee","Sheff W"]
["C",5315,"D","MID","Moritz Leitner","Norwich"]
["C",3580,"D","MID","Aaron Lennon","Burnley"]
["C",5484,"D","MID","Ryan Leonard","Millwall"]
["C",5380,"D","MID","Jefferson Lerma","Bournemouth"]
["C",4007,"D","MID","Jake Livermore","West Brom"]
["C",4905,"D","MID","Ruben Loftus-Cheek","Chelsea"]
["C",5713,"D","MID","Matty Longstaff","Newcastle"]
["C",5522,"D","MID","Sean Longstaff","Newcastle"]
["C",5426,"D","MID","Leo Da Silva Lopes","Hull"]
["C",4367,"D","MID","Kazenga Lua-Lua","Luton"]
["C",5625,"D","MID","Douglas Luiz","Villa"]
["C",3783,"D","MID","Massimo Luongo","Sheff W"]
["C",5516,"D","MID","Brad Lyons","Blackburn"]
["C",5036,"D","MID","Lewis MacLeod","Wigan"]
["C",5476,"D","MID","Connor Mahoney","Millwall"]
["C",4832,"D","MID","Ainsley Maitland-Niles","Arsenal"]
["C",4618,"D","MID","Solly March","Brighton"]
["C",5290,"D","MID","Emiliano Marcondes","Brentford"]
["C",5705,"D","MID","Gabriel Martinelli","Arsenal"]
["C",2937,"D","MID","Ryan Mason","Hull"]
["C",5637,"D","MID","Han-Noah Massengo","Bristol C"]
["C",4275,"D","MID","Juan Mata","Man U"]
["C",3131,"D","MID","James McArthur","Palace"]
["C",4364,"D","MID","James McCarthy","Palace"]
["C",2943,"D","MID","Gareth McCleary","Reading"]
["C",4005,"D","MID","Kevin McDonald","Fulham"]
["C",4400,"D","MID","Josh McEachran","Brentford"]
["C",5249,"D","MID","Cameron McGeehan","Barnsley"]
["C",5141,"D","MID","Barrie McKay","Swansea"]
["C",5547,"D","MID","Kenny McLean","Norwich"]
["C",5557,"D","MID","Scott McTominay","Man U"]
["C",5162,"D","MID","Benjamin Mendy","Man C"]
["C",4947,"D","MID","Nampalys Mendy","Leicester"]
["C",5384,"D","MID","Max Meyer","Palace"]
["C",3592,"D","MID","James Milner","Liverpool"]
["C",5526,"D","MID","Kamohelo Mokotjo","Brentford"]
["C",5338,"D","MID","Kamohelo Mokotjo","Brentford"]
["C",5728,"D","MID","George Moncur","Luton"]
["C",4880,"D","MID","Sam Morsy","Wigan"]
["C",4414,"D","MID","Alex Mowatt","Barnsley"]
["C",5736,"D","MID","Kerim Mrabti","Birmingham"]
["C",5567,"D","MID","Kerim Mrabti","Birmingham"]
["C",4579,"D","MID","Jacob Murphy","Sheff W"]
["C",5234,"D","MID","Charly Musanda","Chelsea"]
["C",3195,"D","MID","Jordan Mutch","Palace"]
["C",5646,"D","MID","Adam Nagy","Bristol C"]
["C",5427,"D","MID","Kal Naismith","Wigan"]
["C",5632,"D","MID","Marvelous Nakamba","Villa"]
["C",3966,"D","MID","Alfred N'Diaye","Wolves"]
["C",5090,"D","MID","Onyinye Ndidi","Leicester"]
["C",5328,"D","MID","Badou Niaye","Stoke"]
["C",5697,"D","MID","Lewis O'Brien","Huddersfield"]
["C",5259,"D","MID","Callum O'Dowda","Bristol C"]
["C",3463,"D","MID","Eunan O'Kane","Leeds"]
["C",2265,"D","MID","Stuart O'Keefe","Cardiff"]
["C",5051,"D","MID","Josh Onomah","Fulham"]
["C",5541,"D","MID","Bright Osavi-Samuel","QPR"]
["C",4654,"D","MID","Ben Osborn","Sheff U"]
["C",4898,"D","MID","Marlon Pack","Cardiff"]
["C",4980,"D","MID","Kasey Palmer","Bristol C"]
["C",4406,"D","MID","Jamie Paterson","Derby"]
["C",4869,"D","MID","Ben Pearson","Preston"]
["C",5344,"D","MID","Joel Pelupessy","Sheff W"]
["C",4828,"D","MID","Andreas Pereira","Man U"]
["C",5032,"D","MID","Roberto Pereyra","Watford"]
["C",4762,"D","MID","Sacha Petshi","Blackburn"]
["C",5529,"D","MID","Brad Potts","Preston"]
["C",4756,"D","MID","Diego Poyet","Charlton"]
["C",5645,"D","MID","Dennis Praet","Leicester"]
["C",4361,"D","MID","Darren Pratley","Charlton"]
["C",4644,"D","MID","Jack Price","Wolves"]
["C",4572,"D","MID","Alex Pritchard","Huddersfield"]
["C",5166,"D","MID","Davy Propper","Brighton"]
["C",2142,"D","MID","Marc Pugh","QPR"]
["C",5760,"D","MID","Ignacio Pussetto","Watford"]
["C",5498,"D","MID","Quina","Watford"]
["C",5455,"D","MID","Harrison Reed","Fulham"]
["C",5561,"D","MID","Andy Rinomhota","Reading"]
["C",5520,"D","MID","Callum Roberts","Newcastle"]
["C",4269,"D","MID","Hal Robson-Kanu","West Brom"]
["C",5596,"D","MID","Rodri","Man C"]
["C",3516,"D","MID","Jack Rodwell","Sheff U"]
["C",5281,"D","MID","Mahlon Romeo","Millwall"]
["C",3932,"D","MID","Oriol Romeu","Southampton"]
["C",5137,"D","MID","Roque Mesa","Swansea"]
["C",5562,"D","MID","Joe Rothwell","Blackburn"]
["C",5714,"D","MID","Pelly Ruddock","Luton"]
["C",5037,"D","MID","Romain Saiss","Wolves"]
["C",5759,"D","MID","Martin Samuelsen","Hull"]
["C",4675,"D","MID","Carlos Sanchez","West Ham"]
["C",4910,"D","MID","George Saville","Middlesbro"]
["C",2930,"D","MID","Morgan Schneiderlin","Everton"]
["C",5083,"D","MID","Josh Scowen","QPR"]
["C",5616,"D","MID","Alfa Semedo","Forest"]
["C",4748,"D","MID","Xherdan Shaqiri","Liverpool"]
["C",5716,"D","MID","Graeme Shinnie","Derby"]
["C",3893,"D","MID","Andrew Shinnie","Luton"]
["C",5289,"D","MID","Adrien Silva","Leicester"]
["C",3688,"D","MID","Moussa Sissoko","Spurs"]
["C",4888,"D","MID","Jiri Skalak","Millwall"]
["C",5746,"D","MID","Will Smallbone","Southampton"]
["C",2179,"D","MID","Richard Smallwood","Blackburn"]
["C",5611,"D","MID","Matt Smith","QPR"]
["C",5269,"D","MID","Korey Smith","Bristol C"]
["C",5467,"D","MID","Emile Smith-Rowe","Huddersfield"]
["C",5298,"D","MID","Paul Smyth","QPR"]
["C",2784,"D","MID","Junior Stanislas","Bournemouth"]
["C",2582,"D","MID","Dale Stephens","Brighton"]
["C",5633,"D","MID","Dujon Sterling","Wigan"]
["C",5159,"D","MID","Kevin Stewart","Hull"]
["C",5707,"D","MID","Ivan Sunjic","Birmingham"]
["C",5610,"D","MID","Sammie Szmodics","Bristol C"]
["C",5457,"D","MID","Panagiotis Tachtsidis","Forest"]
["C",3539,"D","MID","Alexander Tettey","Norwich"]
["C",5753,"D","MID","Luke Thomas","Barnsley"]
["C",5300,"D","MID","Nathan Thomas","Sheff U"]
["C",5546,"D","MID","Ben Thompson","Millwall"]
["C",4603,"D","MID","Jon-Miguel Toral","Hull"]
["C",5401,"D","MID","Lucas Torreira","Arsenal"]
["C",5297,"D","MID","Tom Trybull","Norwich"]
["C",4589,"D","MID","Ryan Tunnicliffe","Luton"]
["C",5278,"D","MID","Joey van den Berg","Reading"]
["C",5640,"D","MID","Fran Villalba","Birmingham"]
["C",5160,"D","MID","Ruben Vinagre","Wolves"]
["C",5232,"D","MID","Mario Vrancic","Norwich"]
["C",4241,"D","MID","Victor Wanyama","Spurs"]
["C",4236,"D","MID","Jamie Ward","Cardiff"]
["C",2846,"D","MID","Ben Watson","Forest"]
["C",3578,"D","MID","Peter Whittingham","Blackburn"]
["C",4717,"D","MID","Georginio Wijnaldum","Liverpool"]
["C",5630,"D","MID","Joe Williams","Wigan"]
["C",4486,"D","MID","Shaun Williams","Millwall"]
["C",3859,"D","MID","Danny Williams","Huddersfield"]
["C",5488,"D","MID","Joe Willock","Arsenal"]
["C",4125,"D","MID","Jack Wilshire","West Ham"]
["C",5074,"D","MID","Harry Winks","Spurs"]
["C",4920,"D","MID","Ryan Woods","Millwall"]
["C",5028,"D","MID","Pawal Wszolek","QPR"]
["C",4927,"D","MID","Granit Xhaka","Arsenal"]
["C",5235,"D","MID","Claudio Yacob","Forest"]
["C",5545,"D","MID","Ryan Yates","Forest"]
["C",5606,"D","MID","Dru Yearwood","Brentford"]
["C",4908,"D","MID","Nico Yennaris","Brentford"]
["C",3543,"D","MID","Maya Yoshida","Southampton"]
["C",4872,"D","MID","Michal Zyro","Wolves"]
["D",4149,"A","FWD","Olivier Giroud","Chelsea"]
["D",4503,"B","FWD","Andre Gray","Watford"]
["D",4696,"B","FWD","Tomer Hemed","Charlton"]
["D",4975,"B","FWD","Jackson Irvine","Hull"]
["D",4781,"B","FWD","Lucas Joao","Reading"]
["D",5255,"B","FWD","Florian Jozefzoon","Derby"]
["D",4357,"B","FWD","Jesse Lingard","Man U"]
["D",5504,"B","FWD","Dwight McNeil","Burnley"]
["D",4758,"B","FWD","Pedro","Chelsea"]
["D",4977,"B","FWD","Bobby Reid","Fulham"]
["D",3618,"B","FWD","Jay Rodriguez","Burnley"]
["D",4108,"B","FWD","Sam Vokes","Stoke"]
["D",4946,"C","FWD","Michy Batshuayi","Chelsea"]
["D",4988,"C","FWD","Jon Dadi Bodvarsson","Millwall"]
["D",5114,"C","FWD","Ben Brereton","Blackburn"]
["D",4849,"C","FWD","Sergi Canos","Brentford"]
["D",5486,"C","FWD","Anwar El Ghazi","Villa"]
["D",5076,"C","FWD","Ashley Fletcher","Middlesbro"]
["D",4388,"C","FWD","Fernando Forestieri","Sheff W"]
["D",4956,"C","FWD","Sam Gallagher","Blackburn"]
["D",3646,"C","FWD","Joe Garner","Wigan"]
["D",4608,"C","FWD","Demarai Gray","Leicester"]
["D",3467,"C","FWD","Junior Hoilett","Cardiff"]
["D",4850,"C","FWD","Kelechi Iheanacho","Leicester"]
["D",4664,"C","FWD","Michael Jacobs","Wigan"]
["D",4979,"C","FWD","Elias Kachunga","Huddersfield"]
["D",5443,"C","FWD","Mat Klich","Leeds"]
["D",5138,"C","FWD","Gavin Massey","Wigan"]
["D",4122,"C","FWD","Dave McGoldrick","Sheff U"]
["D",4137,"C","FWD","Callum McManaman","Luton"]
["D",3685,"C","FWD","Glenn Murray","Brighton"]
["D",4094,"C","FWD","David Nugent","Preston"]
["D",4150,"C","FWD","Jordan Rhodes","Norwich"]
["D",5602,"C","FWD","Allan Saint-Maximin","Newcastle"]
["D",5149,"C","FWD","Dominic Solanke","Bournemouth"]
["D",5245,"C","FWD","Mamadou Thiam","Barnsley"]
["D",5641,"D","FWD","Albian Ajeti","West Ham"]
["D",3661,"D","FWD","Sone Aluko","Reading"]
["D",4075,"D","FWD","Christian Atsu","Newcastle"]
["D",5727,"D","FWD","Jeremie Bela","Birmingham"]
["D",5482,"D","FWD","Mason Bennett","Derby"]
["D",5332,"D","FWD","Billy Bodin","Preston"]
["D",5704,"D","FWD","Lucas Boye","Reading"]
["D",5755,"D","FWD","Rhian Brewster","Swansea"]
["D",5718,"D","FWD","Jacob Brown","Barnsley"]
["D",5521,"D","FWD","Tyrese Campbell","Stoke"]
["D",5294,"D","FWD","Andre Carrillo","Watford"]
["D",4168,"D","FWD","Andy Carroll","Newcastle"]
["D",5710,"D","FWD","Conor Chaplin","Barnsley"]
["D",5500,"D","FWD","Jack Clarke","QPR"]
["D",2856,"D","FWD","Leon Clarke","Sheff U"]
["D",5712,"D","FWD","Aaron Connolly","Brighton"]
["D",5246,"D","FWD","Jason Cummings","Forest"]
["D",5197,"D","FWD","Keinan Davis","Villa"]
["D",5757,"D","FWD","Josh Davison","Charlton"]
["D",5318,"D","FWD","Fousseni Diabate","Leicester"]
["D",5584,"D","FWD","Josip Drmic","Norwich"]
["D",5233,"D","FWD","Bright Enobakhare","Wigan"]
["D",5571,"D","FWD","Marcus Forss","Brentford"]
["D",5696,"D","FWD","Joe Gelhardt","Wigan"]
["D",2707,"D","FWD","Rudy Gestede","Middlesbro"]
["D",5729,"D","FWD","Alvaro Giminez","Birmingham"]
["D",5196,"D","FWD","Andre Green","Charlton"]
["D",5701,"D","FWD","Mason Greenwood","Man U"]
["D",5631,"D","FWD","Arnaut Groeneveld","Bournemouth"]
["D",5745,"D","FWD","Adam Idah","Norwich"]
["D",5194,"D","FWD","Jose Izquierdo","Brighton"]
["D",5389,"D","FWD","Alirera Jahanbakhsh","Brighton"]
["D",4587,"D","FWD","Sullay Kaikai","Palace"]
["D",5583,"D","FWD","Josh Koroma","Huddersfield"]
["D",4718,"D","FWD","Elliiot Lee","Luton"]
["D",5724,"D","FWD","Keane Lewis-Potter","Hull"]
["D",5568,"D","FWD","Danny Loader","Reading"]
["D",5333,"D","FWD","Jurgen Locadia","Brighton"]
["D",3689,"D","FWD","Shane Long","Southampton"]
["D",4712,"D","FWD","Marco Matias","Sheff W"]
["D",5205,"D","FWD","Nathaniel Mendez-Laing","Cardiff"]
["D",5740,"D","FWD","Takumi Minamino","Liverpool"]
["D",5299,"D","FWD","Rafa Mir","Forest"]
["D",5535,"D","FWD","Jan Mlakar","QPR"]
["D",4442,"D","FWD","Jefferson Montero","Birmingham"]
["D",5291,"D","FWD","Louis Moult","Preston"]
["D",4929,"D","FWD","Lys Mousset","Sheff U"]
["D",3488,"D","FWD","Josh Murphy","Cardiff"]
["D",5385,"D","FWD","Yoshinori Muto","Newcastle"]
["D",5698,"D","FWD","Reiss Nelson","Arsenal"]
["D",5741,"D","FWD","Pedro Neto","Wolves"]
["D",4887,"D","FWD","Oumar Niasse","Everton"]
["D",5506,"D","FWD","Lukas Nmecha","Middlesbro"]
["D",3961,"D","FWD","Atdhe Nuhiu","Sheff W"]
["D",5499,"D","FWD","Michael Obafemi","Southampton"]
["D",4659,"D","FWD","Aiden O'Brien","Millwall"]
["D",4495,"D","FWD","Moses Odubajo","Sheff W"]
["D",5303,"D","FWD","Aramide Oteh","QPR"]
["D",2667,"D","FWD","Anthony Pilkington","Wigan"]
["D",5751,"D","FWD","Patrick Roberts","Middlesbro"]
["D",5326,"D","FWD","Tyler Roberts","Leeds"]
["D",4689,"D","FWD","Gary Roberts","Wigan"]
["D",5734,"D","FWD","Rodri","Bristol C"]
["D",5731,"D","FWD","Bukayo Saka","Arsenal"]
["D",5762,"D","FWD","Mbwana Samatta","Villa"]
["D",5073,"D","FWD","Dominic Samuel","Blackburn"]
["D",5644,"D","FWD","Ismaila Sarr","Watford"]
["D",5654,"D","FWD","Patrick Schmidt","Barnsley"]
["D",5742,"D","FWD","Elliot Simoes","Barnsley"]
["D",4024,"D","FWD","Scott Sinclair","Preston"]
["D",5353,"D","FWD","Sam Smith","Reading"]
["D",5316,"D","FWD","Dennis Srbeny","Norwich"]
["D",5057,"D","FWD","Isaac Success","Watford"]
["D",3970,"D","FWD","Andrew Surman","Bournemouth"]
["D",5700,"D","FWD","Sam Surridge","Swansea"]
["D",3668,"D","FWD","Lee Tomlin","Cardiff"]
["D",5292,"D","FWD","Cenk Tosun","Palace"]
["D",4099,"D","FWD","Theo Walcott","Everton"]
["D",5752,"D","FWD","Gavin Whyte","Cardiff"]
["D",4286,"D","FWD","Connor Wickham","Palace"]
["D",5650,"D","FWD","Chris Willock","West Brom"]

{"sheet":"Owners","index":4,"n_rows":16,"n_cols":1,"rows_kept":16,"cut":false,"hidden":true,"merged":[]}
["Jimmy"]
["Paul/Kel"]
["Brad"]
["Dave"]
["Graham"]
["Mo"]
["Bolshy"]
["Andy"]
["Pete"]
["Fid"]
["John M"]
["John W"]
["Nigel"]
["Griff"]
["Rob/Steve"]
["Antony"]

{"sheet":"Results","index":5,"n_rows":2,"n_cols":10,"rows_kept":2,"cut":false,"hidden":false,"merged":[[0,4,0,8]]}
["`",null,null,null,{"$f":"CONCATENATE(AuctionName,\" - Results\")","v":"DL2020 January Auction R1 - Results"}]
["Winner","Code","Ref","Cat","Pos","Player","Team","Owner","Bid","Released"]

{"sheet":"Signed","index":6,"n_rows":277,"n_cols":8,"rows_kept":277,"cut":false,"hidden":false,"merged":[]}
["Sort","Ref","Cat","Pos","Player","Team","Owner","Bid"]
["A",5366,"A","GK","Alisson","Liverpool","Nigel Hughes",1.5]
["A",5362,"A","GK","Kepa Arrizabalaga","Chelsea","Graham Miller",0.7]
["A",4998,"A","GK","Dan Bentley","Bristol C","Mo Sudell",0.1]
["A",5658,"A","GK","Marcus Bettinelli","Fulham","Graham Miller",0.7]
["A",4051,"A","GK","Lee Camp","Birmingham","Paul Fairhurst",0.1]
["A",5666,"A","GK","Kiki Casilla","Leeds","Steve Waterhouse",1.5]
["A",4141,"A","GK","David De Gea","Man U","Carl Hogg",0.6]
["A",5372,"A","GK","Martin Dubravka","Newcastle","Nigel Heyes",0.7]
["A",5187,"A","GK","Ederson","Man C","Chris Griffin",1.7]
["A",5379,"A","GK","Neil Etheridge","Cardiff","Mo Sudell",0.2]
["A",4420,"A","GK","Lukasz Fabianski","West Ham","Carl Hogg",1.1000000000000001]
["A",4360,"A","GK","Ben Foster","Watford","John Murphy",0.2]
["A",5190,"A","GK","Angus Gunn","Southampton","Dave Sumner",0.5]
["A",3735,"A","GK","Tom Heaton","Villa","John Murphy",0.1]
["A",5371,"A","GK","Dean Henderson","Sheff U","Andy Clucas",0.3]
["A",5151,"A","GK","Sam Johnstone","West Brom","Chris Griffin",0.6]
["A",4198,"A","GK","Tim Krul","Norwich","Dave Sumner",0.1]
["A",5369,"A","GK","Bernd Leno","Arsenal","Jonny Fairclough",0.1]
["A",4309,"A","GK","Hugo Lloris","Spurs","Liam Murphy",1.6]
["A",5663,"A","GK","Dilion Phillips","Charlton","Paul Greenwood",0.1]
["A",4795,"A","GK","Jordan Pickford","Everton","Steve Waterhouse",1.5]
["A",3240,"A","GK","Nick Pope","Burnley","Howard Bradley",1.7]
["A",3734,"A","GK","Darren Randolph","Middlesbro","Paul Fairhurst",0.3]
["A",4793,"A","GK","David Raya Martin","Brentford","Andy Clucas",0.1]
["A",5177,"A","GK","Declan Rudd","Preston","Andy Clucas",0.1]
["A",5192,"A","GK","Matthew Ryan","Brighton","Paul Greenwood",0.1]
["A",5657,"A","GK","Brice Samba","Forest","Nigel Hughes",0.1]
["A",4380,"A","GK","Kasper Schmeichel","Leicester","Howard Bradley",1.9]
["A",5659,"A","GK","Guaita Vincente","Palace","Nigel Heyes",0.8]
["A",5148,"A","GK","Christian Walton","Blackburn","Charlotte Phillips",1.2]
["A",2635,"A","GK","Keiran Westwood","Sheff W","Liam Murphy",0.4]
["A",5662,"A","GK","Freddie Woodman","Swansea","Jonny Fairclough",0.3]
["B",5251,"A","DEF","Trent Alexander-Arnold","Liverpool","Charlotte Phillips",2.1]
["B",3538,"A","DEF","Cesar Azpilicueta","Chelsea","Liam Murphy",0.7]
["B",2901,"A","DEF","Ryan Bennett","Wolves","Steve Waterhouse",0.2]
["B",4810,"A","DEF","Gaetano Berardi","Leeds","Charlotte Phillips",1]
["B",5605,"A","DEF","Joao Cancelo","Man C","Paul Greenwood",1]
["B",4297,"A","DEF","Michael Dawson","Forest","Steve Waterhouse",0.5]
["B",4684,"A","DEF","Christian Fuchs","Leicester","Liam Murphy",1]
["B",3073,"A","DEF","Kieran Gibbs","West Brom","John Murphy",0.8]
["B",4447,"A","DEF","Harry Maguire","Man U","Nigel Hughes",1.1000000000000001]
["B",4968,"A","DEF","Alfie Mawson","Fulham","Steve Waterhouse",1]
["B",3486,"A","DEF","Ben Mee","Burnley","Steve Waterhouse",0.6]
["B",5432,"A","DEF","Yerry Mina","Everton","Andy Clucas",1]
["B",4274,"A","DEF","Lee Peltier","Cardiff","Graham Miller",0.3]
["B",4425,"A","DEF","Luke Shaw","Man U","Graham Miller",0.4]
["B",5068,"A","DEF","Mike van der Hoorn","Swansea","Liam Murphy",1.2]
["B",4799,"A","DEF","Virgil van Dijk","Liverpool","Carl Hogg",2.1]
["B",3622,"A","DEF","Kyle Walker","Man C","Liam Murphy",1.2]
["B",4921,"B","DEF","Jake Bidwell","Swansea","Chris Griffin",0.3]
["B",4778,"B","DEF","Joe Bryan","Fulham","Andy Clucas",0.2]
["B",4590,"B","DEF","Conor Coady","Wolves","Jonny Fairclough",0.2]
["B",5308,"B","DEF","Ben Davies","Preston","Jonny Fairclough",0.2]
["B",5323,"B","DEF","Emerson","Chelsea","Carl Hogg",0.4]
["B",4117,"B","DEF","Jonny Evans","Leicester","Chris Griffin",0.8]
["B",4779,"B","DEF","Aden Flint","Cardiff","Liam Murphy",0.4]
["B",4692,"B","DEF","Joe Gomez","Liverpool","Graham Miller",0.7]
["B",4830,"B","DEF","Tomas Kalas","Bristol C","Jonny Fairclough",0.2]
["B",3795,"B","DEF","Michael Keane","Everton","John Murphy",1]
["B",4140,"B","DEF","David Luiz","Arsenal","Dave Sumner",0.2]
["B",4955,"B","DEF","Paddy McNair","Middlesbro","Charlotte Phillips",1.2]
["B",4757,"B","DEF","Nicolas Otamendi","Man C","Carl Hogg",1]
["B",4671,"B","DEF","Kalvin Phillips","Leeds","Mo Sudell",0.9]
["B",5195,"B","DEF","Davison Sanchez","Spurs","Jonny Fairclough",0.2]
["B",4674,"B","DEF","James Tarkowski","Burnley","Andy Clucas",0.8]
["B",5594,"B","DEF","Aaron Wan-Bissaka","Man U","Dave Sumner",0.3]
["B",5687,"C","DEF","Patrick Bauer","Preston","Mo Sudell",0.1]
["B",4811,"C","DEF","Liam Cooper","Leeds","Andy Clucas",1.1000000000000001]
["B",5417,"C","DEF","Issa Diop","West Ham","Paul Greenwood",0.1]
["B",4474,"C","DEF","Lewis Dunk","Brighton","Nigel Heyes",0.1]
["B",5321,"C","DEF","Aymeric Laporte","Man C","Nigel Heyes",0.7]
["B",5180,"C","DEF","Victor Lindelof","Man U","Howard Bradley",0.3]
["B",5469,"C","DEF","Ricardo Pereira","Leicester","Carl Hogg",1.6]
["B",5464,"C","DEF","Connor Roberts","Swansea","Dave Sumner",0.1]
["B",4845,"C","DEF","Andrew Robertson","Liverpool","Nigel Heyes",1.6]
["B",5397,"C","DEF","Jannik Vestergaard","Southampton","Paul Fairhurst",0.1]
["B",2180,"D","DEF","Luke Ayling","Leeds","Chris Griffin",0.1]
["B",5676,"D","DEF","Sonny Bradley","Luton","Paul Fairhurst",0.1]
["B",5386,"D","DEF","Lucas Digne","Everton","Dave Sumner",1]
["B",5424,"D","DEF","Ryan Fredericks","West Ham","John Murphy",0.1]
["B",4958,"D","DEF","Arthur Masuaku","West Ham","Howard Bradley",0.1]
["B",5064,"D","DEF","Joel Matip","Liverpool","Chris Griffin",0.1]
["B",4182,"D","DEF","Wes Morgan","Leicester","Nigel Hughes",0.2]
["B",3113,"D","DEF","Kyle Naughton","Swansea","Nigel Hughes",0.1]
["B",4852,"D","DEF","Jack O'Connell","Sheff U","Howard Bradley",0.1]
["B",5485,"D","DEF","Kristian Pedersen","Birmingham","Paul Fairhurst",0.1]
["B",5528,"D","DEF","Fabian Schar","Newcastle","Paul Fairhurst",0.1]
["B",5689,"D","DEF","Caglar Soyuncu","Leicester","Mo Sudell",0.3]
["B",2902,"D","DEF","Patrick Van Aanholt","Palace","Howard Bradley",0.1]
["B",5684,"D","DEF","Ben White","Leeds","Nigel Hughes",0.1]
["B",5282,"D","DEF","Joe Worrall","Forest","Paul Greenwood",""]
["C",4197,"A","MID","Albert Adomah","Forest","Graham Miller",1.2]
["C",3496,"A","MID","Michail Antonio","West Ham","Steve Waterhouse",0.1]
["C",5240,"A","MID","Bersant Celina","Swansea","Paul Fairhurst",2]
["C",5176,"A","MID","Bradley Dack","Blackburn","Carl Hogg",1.5]
["C",5039,"A","MID","Jack Grealish","Villa","Charlotte Phillips",0.1]
["C",4368,"A","MID","Will Hughes","Watford","Steve Waterhouse",0.1]
["C",5163,"A","MID","Diogo Jota","Wolves","Andy Clucas",2.5]
["C",4594,"A","MID","Riyad Mahrez","Man C","Paul Greenwood",2.2000000000000002]
["C",5363,"A","MID","John McGinn","Villa","Liam Murphy",2.1]
["C",5143,"A","MID","Ruben Neves","Wolves","Charlotte Phillips",0.5]
["C",4957,"A","MID","Paul Pogba","Man U","John Murphy",3.4]
["C",3899,"A","MID","Jonjo Shelvey","Newcastle","Jonny Fairclough",0.1]
["C",4196,"A","MID","Gylfi Sigurdsson","Everton","Nigel Heyes",4.0999999999999996]
["C",5613,"A","MID","Tiago Silva","Forest","Jonny Fairclough",0.3]
["C",5174,"A","MID","Bernardo Silva","Man C","Liam Murphy",5.3]
["C",4132,"A","MID","David Silva","Man C","Nigel Heyes",2.6]
["C",4788,"A","MID","Heung-Min Son","Spurs","Dave Sumner",7]
["C",4231,"A","MID","Willian","Chelsea","Nigel Hughes",0.5]
["C",5265,"B","MID","Ezgjan Alioski","Leeds","Paul Fairhurst",0.9]
["C",5243,"B","MID","Harvey Barnes","Leicester","Paul Greenwood",0.3]
["C",4256,"B","MID","Tom Cairney","Fulham","Liam Murphy",3.5]
["C",5436,"B","MID","Leo Dendoncker","Wolves","Steve Waterhouse",0.1]
["C",5247,"B","MID","Kieran Dowell","Wigan","John Murphy",2]
["C",5335,"B","MID","Dan James","Man U","Liam Murphy",4.5]
["C",4838,"B","MID","Daniel Johnson","Preston","Paul Fairhurst",2.9]
["C",5242,"B","MID","James Maddison","Leicester","Graham Miller",3]
["C",5262,"B","MID","Luka Milivojevic","Palace","Paul Greenwood",3.2]
["C",5392,"B","MID","Mason Mount","Chelsea","Steve Waterhouse",3.9]
["C",5327,"B","MID","Lucas Moura","Spurs","Nigel Hughes",3]
["C",5507,"B","MID","Chrstian Pulisic","Chelsea","Graham Miller",0.9]
["C",5534,"B","MID","Youri Tielemans","Leicester","Carl Hogg",2.1]
["C",3769,"B","MID","Andros Townsend","Palace","Charlotte Phillips",0.7]
["C",4750,"B","MID","Adama Traore","Wolves","Jonny Fairclough",0.1]
["C",5336,"B","MID","Harry Wilson","Bournemouth","Nigel Hughes",2]
["C",2144,"C","MID","Harry Arter","Fulham","Dave Sumner",0.2]
["C",5346,"C","MID","Matthew Cash","Forest","Andy Clucas",0.3]
["C",4502,"C","MID","Stuart Dallas","Leeds","Howard Bradley",0.3]
["C",3660,"C","MID","Ryan Fraser","Bournemouth","Carl Hogg",0.9]
["C",4936,"C","MID","Ilkay Gundogan","Man C","Nigel Heyes",0.3]
["C",5595,"C","MID","Tanguy Ndombele","Spurs","Dave Sumner",0.2]
["C",3727,"C","MID","Alex Oxlade-Chamberlain","Liverpool","Charlotte Phillips",2]
["C",4186,"C","MID","Matt Phillips","West Brom","John Murphy",1.2]
["C",4986,"C","MID","John Swift","Reading","Mo Sudell",0.1]
["C",4669,"C","MID","James Ward-Prowse","Southampton","John Murphy",0.1]
["C",5554,"D","MID","Juninho Bacuna","Huddersfield","Graham Miller",0.1]
["C",4325,"D","MID","Ross Barkley","Chelsea","John Murphy",1.3]
["C",5695,"D","MID","Jude Bellingham","Birmingham","Paul Greenwood",0.2]
["C",5261,"D","MID","David Brooks","Bournemouth","Mo Sudell",0.1]
["C",5491,"D","MID","Todd Cantwell","Norwich","Steve Waterhouse",2]
["C",5419,"D","MID","Joao Carvalho","Forest","Chris Griffin",0.1]
["C",4740,"D","MID","Sam Clucas","Stoke","Nigel Hughes",0.3]
["C",5461,"D","MID","Grady Diangana","West Brom","Paul Fairhurst",0.9]
["C",5514,"D","MID","Ovie Ejaria","Reading","Chris Griffin",0.3]
["C",4568,"D","MID","Lee Evans","Wigan","Dave Sumner",0.1]
["C",5460,"D","MID","Phil Foden","Man C","Dave Sumner",2]
["C",5692,"D","MID","Conor Gallagher","Swansea","Paul Fairhurst",0.3]
["C",4622,"D","MID","Kadeem Harris","Sheff W","Howard Bradley",0.7]
["C",5325,"D","MID","Jack Harrison","Leeds","Chris Griffin",0.1]
["C",5226,"D","MID","Josh Harrop","Preston","Mo Sudell",0.1]
["C",5487,"D","MID","Callum Hudson-Odoi","Chelsea","Andy Clucas",0.1]
["C",5558,"D","MID","Naby Keita","Liverpool","Graham Miller",0.5]
["C",2886,"D","MID","Mark Noble","West Ham","Carl Hogg",0.4]
["C",5651,"D","MID","Matheus Pereira","West Brom","Carl Hogg",0.6]
["C",4010,"D","MID","Joe Ralls","Cardiff","Howard Bradley",0.3]
["C",4088,"D","MID","Wayne Routledge","Swansea","Chris Griffin",1]
["C",1960,"D","MID","Tommy Rowe","Bristol C","Mo Sudell",0.1]
["C",2799,"D","MID","Jeffrey Schlupp","Palace","Mo Sudell",0.1]
["C",5587,"D","MID","Leandro Trossard","Brighton","Andy Clucas",0.3]
["C",4864,"D","MID","Jed Wallace","Millwall","Howard Bradley",0.3]
["C",5480,"D","MID","Lewis Wing","Middlesbro","Howard Bradley",0.3]
["D",4976,"A","FWD","Tammy Abraham","Chelsea","John Murphy",7]
["D",4382,"A","FWD","Sergio Aguero","Man C","Mo Sudell",17.3]
["D",4785,"A","FWD","Dele Alli","Spurs","Steve Waterhouse",3]
["D",4454,"A","FWD","Britt Assombalonga","Middlesbro","Howard Bradley",5.9]
["D",5309,"A","FWD","Pierre-Emerick Aubameyang","Arsenal","Graham Miller",14.2]
["D",4403,"A","FWD","Patrick Bamford","Leeds","Steve Waterhouse",14]
["D",3728,"A","FWD","Ashley Barnes","Burnley","Steve Waterhouse",4]
["D",4152,"A","FWD","Christian Benteke","Palace","Steve Waterhouse",0.4]
["D",5170,"A","FWD","Jarrod Bowen","Hull","Andy Clucas",12.8]
["D",4338,"A","FWD","Kevin De Bruyne","Man C","Charlotte Phillips",9.1999999999999993]
["D",4392,"A","FWD","Gerard Deulofeu","Watford","Graham Miller",2.1]
["D",4311,"A","FWD","Christian Eriksen","Spurs","Liam Murphy",3.1]
["D",4695,"A","FWD","Roberto Firmino","Liverpool","Charlotte Phillips",15]
["D",4284,"A","FWD","Stephen Fletcher","Sheff W","Nigel Heyes",4]
["D",4281,"A","FWD","Lewis Grabban","Forest","Nigel Hughes",10.199999999999999]
["D",5690,"A","FWD","Karlan Grant","Huddersfield","Nigel Hughes",7]
["D",5107,"A","FWD","Kamil Grosicki","Hull","Carl Hogg",5]
["D",5620,"A","FWD","Sebastian Haller","West Ham","Paul Greenwood",7.5]
["D",3566,"A","FWD","Pablo Hernandez","Leeds","Nigel Heyes",7.5]
["D",4902,"A","FWD","Alex Iwobi","Everton","Steve Waterhouse",3.8]
["D",4962,"A","FWD","Gabriel Jesus","Man C","Carl Hogg",7.3]
["D",5598,"A","FWD","Joelinton","Newcastle","Paul Fairhurst",5.0999999999999996]
["D",4133,"A","FWD","Lucas Jutkiewitcz","Birmingham","Paul Greenwood",4.2]
["D",3773,"A","FWD","Harry Kane","Spurs","Chris Griffin",17.3]
["D",5604,"A","FWD","Moise Kean","Everton","Liam Murphy",3.5]
["D",4319,"A","FWD","Anthony Knockaert","Fulham","Andy Clucas",3.8]
["D",5139,"A","FWD","Alexandre Lacazette","Arsenal","Nigel Hughes",5]
["D",4541,"A","FWD","Tom Lawrence","Derby","Steve Waterhouse",3]
["D",5647,"A","FWD","Jonathan Leko","Charlton","Chris Griffin",0.5]
["D",4477,"A","FWD","Joe Lolley","Forest","Howard Bradley",2.1]
["D",4539,"A","FWD","Sadio Mane","Liverpool","Andy Clucas",13.1]
["D",4801,"A","FWD","Anthony Martial","Man U","Liam Murphy",5.4]
["D",5152,"A","FWD","Neal Maupay","Brighton","Dave Sumner",2]
["D",4726,"A","FWD","Aleksandar Mitrovic","Fulham","Jonny Fairclough",18]
["D",5407,"A","FWD","Teemu Pukki","Norwich","Chris Griffin",6.5]
["D",4901,"A","FWD","Marcus Rashford","Man U","John Murphy",7.5]
["D",5168,"A","FWD","Richarlison","Everton","Nigel Heyes",6.5]
["D",4409,"A","FWD","Mohamed Salah","Liverpool","Dave Sumner",17.8]
["D",5508,"A","FWD","Jayden Stockley","Preston","Paul Greenwood",2.2000000000000002]
["D",4308,"A","FWD","Jamie Vardy","Leicester","Nigel Heyes",11]
["D",5222,"A","FWD","Ollie Watkins","Brentford","Carl Hogg",7]
["D",4485,"A","FWD","Callum Wilson","Bournemouth","Mo Sudell",4]
["D",4128,"A","FWD","Chris Wood","Burnley","Carl Hogg",0.5]
["D",4917,"A","FWD","Kenneth Zohore","West Brom","John Murphy",7]
["D",4990,"B","FWD","Che Adams","Southampton","Carl Hogg",0.1]
["D",5536,"B","FWD","Miguel Almiron","Newcastle","Steve Waterhouse",0.2]
["D",5022,"B","FWD","Adam Armstrong","Blackburn","Nigel Heyes",0.1]
["D",4737,"B","FWD","Jordan Ayew","Palace","Graham Miller",0.2]
["D",4686,"B","FWD","Andre Ayew","Swansea","Nigel Hughes",0.2]
["D",5129,"B","FWD","Tom Barkhuizen","Preston","Nigel Hughes",0.1]
["D",4953,"B","FWD","Borja Baston","Swansea","Paul Fairhurst",10.3]
["D",5034,"B","FWD","Izzy Brown","Luton","John Murphy",1.1000000000000001]
["D",5206,"B","FWD","Dominic Calvert-Lewin","Everton","Graham Miller",0.1]
["D",4135,"B","FWD","Troy Deeney","Watford","Graham Miller",1.8]
["D",5171,"B","FWD","Famara Diedhiou","Bristol C","John Murphy",2.5]
["D",5629,"B","FWD","Robert Glatzel","Cardiff","Howard Bradley",1.6]
["D",4092,"B","FWD","Danny Graham","Blackburn","Jonny Fairclough",2]
["D",4561,"B","FWD","Lee Gregory","Stoke","Dave Sumner",1]
["D",3634,"B","FWD","Joshua King","Bournemouth","Carl Hogg",2.1]
["D",4355,"B","FWD","Erik Lamela","Spurs","Liam Murphy",0.8]
["D",5227,"B","FWD","Sean Maguire","Preston","Howard Bradley",1]
["D",5458,"B","FWD","Jack Marriott","Derby","John Murphy",0.6]
["D",5334,"B","FWD","Oli McBurnie","Sheff U","Graham Miller",1]
["D",5349,"B","FWD","Keifer Moore","Wigan","Jonny Fairclough",0.1]
["D",5258,"B","FWD","Eddie Nketiah","Leeds","Chris Griffin",4]
["D",5600,"B","FWD","Nicolas Pepe","Arsenal","Liam Murphy",2.4]
["D",4777,"B","FWD","Callum Robinson","Sheff U","Charlotte Phillips",0.1]
["D",3830,"B","FWD","Matt Smith","Millwall","Dave Sumner",0.3]
["D",4389,"B","FWD","Raheem Sterling","Man C","Jonny Fairclough",15.3]
["D",5623,"B","FWD","Trezequet","Villa","Graham Miller",0.1]
["D",5244,"B","FWD","Isaac Vassell","Cardiff","Paul Fairhurst",0.1]
["D",4260,"B","FWD","Matej Vydra","Burnley","Charlotte Phillips",0.1]
["D",4191,"B","FWD","Martyn Waghorn","Derby","Howard Bradley",5.5]
["D",4126,"B","FWD","Danny Welbeck","Watford","Jonny Fairclough",0.1]
["D",4404,"B","FWD","Nahki Wells","QPR","Carl Hogg",2.6]
["D",5577,"B","FWD","Wesley","Villa","Paul Fairhurst",3.9]
["D",4592,"B","FWD","Cauley Woodrow","Barnsley","Paul Greenwood",0.2]
["D",3882,"B","FWD","Wilfrid Zaha","Palace","Charlotte Phillips",3.9]
["D",3779,"C","FWD","Benik Afobe","Bristol C","Paul Fairhurst",4.9000000000000004]
["D",5393,"C","FWD","Felipe Anderson","West Ham","Andy Clucas",0.1]
["D",4139,"C","FWD","Charlie Austin","West Brom","Dave Sumner",3]
["D",4282,"C","FWD","Fraizer Campbell","Huddersfield","Mo Sudell",0.3]
["D",5024,"C","FWD","Ivan Cavaleiro","Fulham","Andy Clucas",2]
["D",5599,"C","FWD","Patrick Cutrone","Fiorentina","Mo Sudell",2.5]
["D",5618,"C","FWD","Tom Eaves","Hull","Chris Griffin",0.1]
["D",5350,"C","FWD","Eberechi Eze","QPR","John Murphy",0.5]
["D",4773,"C","FWD","Jordan Hugill","QPR","Howard Bradley",5.5]
["D",4146,"C","FWD","Danny Ings","Southampton","Nigel Hughes",1.1000000000000001]
["D",5421,"C","FWD","Raul Jiminez","Wolves","Paul Greenwood",5.0999999999999996]
["D",5601,"C","FWD","Jamal Lowe","Wigan","Liam Murphy",0.4]
["D",4965,"C","FWD","Leroy Sane","Man C","Charlotte Phillips",2.2000000000000002]
["D",4233,"C","FWD","Billy Sharp","Sheff U","Jonny Fairclough",1.1000000000000001]
["D",4350,"C","FWD","Andreas Weimann","Bristol C","Dave Sumner",1.5]
["D",5497,"D","FWD","Said Benraham","Brentford","Andy Clucas",0.1]
["D",5706,"D","FWD","Macauley Bonne","Charlton","Chris Griffin",0.5]
["D",5046,"D","FWD","Tom Bradshaw","Millwall","Chris Griffin",2.1]
["D",5691,"D","FWD","James Collins","Luton","Paul Fairhurst",2.1]
["D",5693,"D","FWD","Harry Cornick","Luton","Paul Fairhurst",5.7]
["D",5576,"D","FWD","Moussa Djenepo","Southampton","Mo Sudell",0.1]
["D",3579,"D","FWD","Paul Gallagher","Preston","Chris Griffin",0.3]
["D",4916,"D","FWD","Scott Hogan","Stoke","Nigel Hughes",0.2]
["D",4144,"D","FWD","Tom Ince","Stoke","Andy Clucas",0.1]
["D",3435,"D","FWD","Josh Magennis","Hull","Dave Sumner",0.5]
["D",4112,"D","FWD","Chris Martin","Derby","Mo Sudell",0.1]
["D",5638,"D","FWD","Bryan Mbeumo","Brentford","Mo Sudell",0.1]
["D",5472,"D","FWD","Yakou Meite","Reading","Paul Greenwood",2.2000000000000002]
["D",4598,"D","FWD","Ayoze Perez","Leicester","Mo Sudell",0.1]
["D",4147,"D","FWD","Nick Powell","Stoke","John Murphy",0.6]
["D",5609,"D","FWD","George Puscas","Reading","Howard Bradley",4.7]
["D",4086,"D","FWD","Wayne Rooney","Derby","Graham Miller",0.3]
["D",5694,"D","FWD","Lyle Taylor","Charlton","Paul Greenwood",6.1]
["D",2684,"D","FWD","Danny Ward","Cardiff","Nigel Hughes",0.1]
["D",5441,"D","FWD","Josh Windass","Wigan","Liam Murphy",0.4]
["D",5041,"D","FWD","Sam Winnall","Sheff W","Paul Greenwood",0.2]
["D",5368,"D","FWD","Andriy Yarmolenko","West Ham","Paul Greenwood",1.3]

{"sheet":"SquadSize","index":7,"n_rows":21,"n_cols":6,"rows_kept":21,"cut":false,"hidden":false,"merged":[]}
[]
[]
["Count of Player","Pos"]
["Owner","GK","DEF","MID","FWD","Grand Total"]
["Andy Clucas",3,4,4,7,18]
["Carl Hogg",2,4,5,7,18]
["Charlotte Phillips",1,3,4,6,14]
["Chris Griffin",2,4,4,8,18]
["Dave Sumner",2,4,5,7,18]
["Graham Miller",2,3,5,8,18]
["Howard Bradley",2,4,5,7,18]
["John Murphy",2,3,5,8,18]
["Jonny Fairclough",2,4,3,6,15]
["Liam Murphy",2,5,4,7,18]
["Mo Sudell",2,3,5,8,18]
["Nigel Heyes",2,3,3,5,13]
["Nigel Hughes",2,4,4,8,18]
["Paul Fairhurst",2,4,5,7,18]
["Paul Greenwood",2,3,4,9,18]
["Steve Waterhouse",2,4,5,7,18]
["Grand Total",32,59,70,115,276]

{"sheet":"Spending","index":8,"n_rows":5,"n_cols":3,"rows_kept":5,"cut":false,"hidden":false,"merged":[]}
[]
[]
[null,"Winner","Data"]
[]
["Owner"]